[Event "January 9 Late 2024"]
[Site "https://www.chess.com"]
[Date "2024.01.09"]
[Round "8"]
[White "Vila Dupla, Aurelio"]
[Black "Oliveira, Tiago Batista"]
[Result "1-0"]
[Board "165"]
[TimeControl "180+1"]
[WhiteFideId "2203383"]
[BlackFideId "2108291"]
[WhiteElo "2155"]
[BlackElo "2025"]
[WhiteTeam "ESP"]
[BlackTeam "BRA"]
[WhiteClock "0:00:18"]
[BlackClock "0:00:10"]

1. Nf3 {[%clk 0:03:00]}  Nf6 {[%clk 0:02:59]} 2. d4 {[%clk 0:03:00]}  g6 {[%clk 0:02:58]} 3. g3 {[%clk 0:02:59]}  Bg7 {[%clk 0:02:57]} 4. Bg2 {[%clk 0:03:00]}  O-O {[%clk 0:02:58]} 5. O-O {[%clk 0:03:01]}  d5 {[%clk 0:02:58]} 6. c4 {[%clk 0:03:01]}  c6 {[%clk 0:02:57]} 7. cxd5 {[%clk 0:03:01]}  cxd5 {[%clk 0:02:57]} 8. Nc3 {[%clk 0:03:01]}  Nc6 {[%clk 0:02:57]} 9. Ne5 {[%clk 0:03:01]}  Bf5 {[%clk 0:02:53]} 10. Nxc6 {[%clk 0:02:59]}  bxc6 {[%clk 0:02:53]} 11. Na4 {[%clk 0:02:59]}  Qc8 {[%clk 0:02:03]} 12. b3 {[%clk 0:02:48]}  Bh3 {[%clk 0:01:58]} 13. Ba3 {[%clk 0:02:48]}  Bxg2 {[%clk 0:01:51]} 14. Kxg2 {[%clk 0:02:49]}  Re8 {[%clk 0:01:48]} 15. Rc1 {[%clk 0:02:49]}  e5 {[%clk 0:01:48]} 16. dxe5 {[%clk 0:02:41]}  Ng4 {[%clk 0:01:42]} 17. Qc2 {[%clk 0:02:31]}  Nxe5 {[%clk 0:01:37]} 18. Bb2 {[%clk 0:02:23]}  Bh6 {[%clk 0:01:30]} 19. e3 {[%clk 0:02:11]}  Ng4 {[%clk 0:01:05]} 20. Qc3 {[%clk 0:02:08]}  f6 {[%clk 0:00:50]} 21. Qxc6 {[%clk 0:01:56]}  Qf5 {[%clk 0:00:45]} 22. Qc2 {[%clk 0:01:34]}  Qh5 {[%clk 0:00:39]} 23. h3 {[%clk 0:01:29]}  Ne5 {[%clk 0:00:29]} 24. Qd1 {[%clk 0:01:29]}  Qf5 {[%clk 0:00:25]} 25. Qxd5+ {[%clk 0:01:23]}  Kh8 {[%clk 0:00:21]} 26. Bxe5 {[%clk 0:01:23]}  fxe5 {[%clk 0:00:21]} 27. Nc5 {[%clk 0:00:53]}  e4 {[%clk 0:00:19]} 28. Qxf5 {[%clk 0:00:47]}  gxf5 {[%clk 0:00:19]} 29. g4 {[%clk 0:00:33]}  f4 {[%clk 0:00:17]} 30. exf4 {[%clk 0:00:28]}  Bxf4 {[%clk 0:00:17]} 31. Rce1 {[%clk 0:00:28]}  e3 {[%clk 0:00:16]} 32. fxe3 {[%clk 0:00:27]}  Bxe3 {[%clk 0:00:17]} 33. Nd3 {[%clk 0:00:24]}  Bd2 {[%clk 0:00:16]} 34. Rxe8+ {[%clk 0:00:22]}  Rxe8 {[%clk 0:00:16]} 35. Rf2 {[%clk 0:00:23]}  Bc3 {[%clk 0:00:16]} 36. Nf4 {[%clk 0:00:20]}  Re1 {[%clk 0:00:15]} 37. Re2 {[%clk 0:00:20]}  Bd4 {[%clk 0:00:10]} 38. Rxe1 {[%clk 0:00:18]} 1-0

[Event "January 9 Late 2024"]
[Site "https://www.chess.com"]
[Date "2024.01.09"]
[Round "8"]
[White "Feliz Dotel, Dewar Bienvenido"]
[Black "Smirnov, Timofey"]
[Result "1-0"]
[Board "166"]
[TimeControl "180+1"]
[WhiteFideId "6402801"]
[BlackFideId "24176427"]
[WhiteElo "2153"]
[BlackElo "1991"]
[WhiteTeam "DOM"]
[BlackTeam "RUS"]
[WhiteClock "0:01:10"]
[BlackClock "0:00:46"]

1. Nf3 {[%clk 0:02:59]}  d5 {[%clk 0:02:59]} 2. g3 {[%clk 0:02:58]}  Bf5 {[%clk 0:02:57]} 3. Bg2 {[%clk 0:02:58]}  e6 {[%clk 0:02:57]} 4. O-O {[%clk 0:02:57]}  Nf6 {[%clk 0:02:58]} 5. c4 {[%clk 0:02:57]}  c6 {[%clk 0:02:57]} 6. Qb3 {[%clk 0:02:54]}  Qb6 {[%clk 0:02:54]} 7. d3 {[%clk 0:02:53]}  h6 {[%clk 0:02:52]} 8. Be3 {[%clk 0:02:51]}  Qc7 {[%clk 0:02:42]} 9. Nc3 {[%clk 0:02:47]}  Be7 {[%clk 0:02:38]} 10. cxd5 {[%clk 0:02:39]}  exd5 {[%clk 0:02:38]} 11. Rac1 {[%clk 0:02:35]}  Be6 {[%clk 0:02:18]} 12. Nb5 {[%clk 0:02:09]}  Qa5 {[%clk 0:02:17]} 13. Nbd4 {[%clk 0:02:04]}  O-O {[%clk 0:02:06]} 14. Nxe6 {[%clk 0:02:03]}  fxe6 {[%clk 0:02:01]} 15. Qxb7 {[%clk 0:02:00]}  Nbd7 {[%clk 0:01:48]} 16. Qxc6 {[%clk 0:01:58]}  Qxa2 {[%clk 0:01:44]} 17. Qxe6+ {[%clk 0:01:57]}  Rf7 {[%clk 0:01:37]} 18. Bd4 {[%clk 0:01:55]}  Re8 {[%clk 0:01:34]} 19. Ra1 {[%clk 0:01:47]}  Qb3 {[%clk 0:01:25]} 20. Bxf6 {[%clk 0:01:25]}  Nxf6 {[%clk 0:01:20]} 21. Ne5 {[%clk 0:01:24]}  Rf8 {[%clk 0:00:50]} 22. Nxf7 {[%clk 0:01:18]}  Rxf7 {[%clk 0:00:51]} 23. Rxa7 {[%clk 0:01:10]}  Qxb2 {[%clk 0:00:46]} 1-0

[Event "January 9 Late 2024"]
[Site "https://www.chess.com"]
[Date "2024.01.09"]
[Round "8"]
[White "Michalski, Olaf"]
[Black "Vargas, Mauricio"]
[Result "1-0"]
[Board "167"]
[TimeControl "180+1"]
[WhiteFideId "1106740"]
[BlackFideId "4404572"]
[WhiteElo "2146"]
[BlackElo "1851"]
[WhiteTeam "POL"]
[BlackTeam "COL"]
[WhiteClock "0:00:26"]
[BlackClock "0:01:28"]

1. d4 {[%clk 0:02:55]}  d5 {[%clk 0:02:59]} 2. c4 {[%clk 0:02:54]}  e6 {[%clk 0:02:59]} 3. Nc3 {[%clk 0:02:53]}  c6 {[%clk 0:02:59]} 4. e4 {[%clk 0:02:48]}  dxc4 {[%clk 0:02:58]} 5. Bxc4 {[%clk 0:02:47]}  Bb4 {[%clk 0:02:56]} 6. Nf3 {[%clk 0:02:38]}  h6 {[%clk 0:02:54]} 7. O-O {[%clk 0:02:37]}  Nf6 {[%clk 0:02:54]} 8. e5 {[%clk 0:02:35]}  Bxc3 {[%clk 0:02:50]} 9. bxc3 {[%clk 0:02:34]}  Nd5 {[%clk 0:02:51]} 10. Qd3 {[%clk 0:02:13]}  O-O {[%clk 0:02:49]} 11. a4 {[%clk 0:01:56]}  Qe7 {[%clk 0:02:47]} 12. Ba3 {[%clk 0:01:53]}  Qe8 {[%clk 0:02:39]} 13. Bxf8 {[%clk 0:01:37]}  Qxf8 {[%clk 0:02:40]} 14. Nd2 {[%clk 0:01:37]}  c5 {[%clk 0:02:38]} 15. Ne4 {[%clk 0:01:33]}  cxd4 {[%clk 0:02:37]} 16. cxd4 {[%clk 0:01:32]}  Bd7 {[%clk 0:02:35]} 17. Bxd5 {[%clk 0:01:09]}  exd5 {[%clk 0:02:35]} 18. Nd6 {[%clk 0:01:04]}  Bc6 {[%clk 0:02:28]} 19. a5 {[%clk 0:01:00]}  Na6 {[%clk 0:02:23]} 20. Rfe1 {[%clk 0:00:58]}  Rd8 {[%clk 0:02:15]} 21. Re3 {[%clk 0:00:57]}  Nb4 {[%clk 0:02:07]} 22. Qf5 {[%clk 0:00:51]}  g6 {[%clk 0:02:01]} 23. Qb1 {[%clk 0:00:45]}  Na6 {[%clk 0:01:52]} 24. Rf3 {[%clk 0:00:45]}  Rd7 {[%clk 0:01:42]} 25. Rf6 {[%clk 0:00:40]}  Rd8 {[%clk 0:01:43]} 26. Rxf7 {[%clk 0:00:36]}  Qxf7 {[%clk 0:01:41]} 27. Nxf7 {[%clk 0:00:36]}  Kxf7 {[%clk 0:01:42]} 28. Ra3 {[%clk 0:00:36]}  Nc7 {[%clk 0:01:40]} 29. Rf3+ {[%clk 0:00:30]}  Kg7 {[%clk 0:01:39]} 30. Rf6 {[%clk 0:00:31]}  Nb5 {[%clk 0:01:33]} 31. Qxg6+ {[%clk 0:00:29]}  Kh8 {[%clk 0:01:31]} 32. Qxh6+ {[%clk 0:00:26]}  Kg8 {[%clk 0:01:31]} 33. Qg5+ {[%clk 0:00:26]}  Kh7 {[%clk 0:01:28]} 34. Rh6# {[%clk 0:00:26]} 1-0

[Event "January 9 Late 2024"]
[Site "https://www.chess.com"]
[Date "2024.01.09"]
[Round "9"]
[White "Nepomniachtchi, Ian"]
[Black "Xiong, Jeffery"]
[Result "1-0"]
[Board "3"]
[TimeControl "180+1"]
[WhiteFideId "4168119"]
[BlackFideId "2047640"]
[WhiteElo "3137"]
[BlackElo "3037"]
[WhiteTeam "RUS"]
[BlackTeam "USA"]
[WhiteClock "0:00:50"]
[BlackClock "0:00:18"]

1. e4 {[%clk 0:03:00]}  e5 {[%clk 0:03:00]} 2. f4 {[%clk 0:03:00]}  d5 {[%clk 0:02:58]} 3. exd5 {[%clk 0:03:00]}  exf4 {[%clk 0:02:58]} 4. Nf3 {[%clk 0:03:01]}  Nf6 {[%clk 0:02:59]} 5. Bb5+ {[%clk 0:03:01]}  c6 {[%clk 0:02:58]} 6. dxc6 {[%clk 0:03:02]}  bxc6 {[%clk 0:02:59]} 7. Bc4 {[%clk 0:03:02]}  Bd6 {[%clk 0:02:59]} 8. d4 {[%clk 0:03:01]}  O-O {[%clk 0:02:59]} 9. O-O {[%clk 0:03:01]}  Bg4 {[%clk 0:02:55]} 10. Nc3 {[%clk 0:03:01]}  Nbd7 {[%clk 0:02:55]} 11. Ne2 {[%clk 0:03:00]}  Nb6 {[%clk 0:02:54]} 12. Bb3 {[%clk 0:02:51]}  Nbd5 {[%clk 0:02:55]} 13. c4 {[%clk 0:02:49]}  Ne3 {[%clk 0:02:55]} 14. Bxe3 {[%clk 0:02:49]}  fxe3 {[%clk 0:02:55]} 15. Qd3 {[%clk 0:02:50]}  Qe7 {[%clk 0:02:47]} 16. Rae1 {[%clk 0:02:47]}  Rae8 {[%clk 0:02:47]} 17. c5 {[%clk 0:02:40]}  Bc7 {[%clk 0:02:47]} 18. Ng3 {[%clk 0:02:40]}  g6 {[%clk 0:02:36]} 19. Ne5 {[%clk 0:01:51]}  Bxe5 {[%clk 0:02:34]} 20. Qxe3 {[%clk 0:01:43]}  Bd6 {[%clk 0:01:16]} 21. Qc3 {[%clk 0:01:29]}  Qd8 {[%clk 0:01:12]} 22. cxd6 {[%clk 0:01:29]}  Qxd6 {[%clk 0:01:11]} 23. Re5 {[%clk 0:01:16]}  Rd8 {[%clk 0:01:04]} 24. h3 {[%clk 0:01:02]}  Bc8 {[%clk 0:00:58]} 25. Qe3 {[%clk 0:01:00]}  Kg7 {[%clk 0:00:54]} 26. Rf4 {[%clk 0:00:57]}  Nd5 {[%clk 0:00:31]} 27. Bxd5 {[%clk 0:00:56]}  cxd5 {[%clk 0:00:32]} 28. Rh4 {[%clk 0:00:55]}  Rh8 {[%clk 0:00:22]} 29. Qh6+ {[%clk 0:00:52]}  Kg8 {[%clk 0:00:23]} 30. Nh5 {[%clk 0:00:49]}  gxh5 {[%clk 0:00:24]} 31. Re8+ {[%clk 0:00:49]}  Rxe8 {[%clk 0:00:18]} 32. Qxd6 {[%clk 0:00:50]} 1-0

[Event "January 9 Late 2024"]
[Site "https://www.chess.com"]
[Date "2024.01.09"]
[Round "9"]
[White "Zhigalko, Sergei"]
[Black "Dubov, Daniil"]
[Result "0-1"]
[Board "4"]
[TimeControl "180+1"]
[WhiteFideId "13502956"]
[BlackFideId "24126055"]
[WhiteElo "2953"]
[BlackElo "3134"]
[WhiteTeam "BLR"]
[BlackTeam "RUS"]
[WhiteClock "0:00:00"]
[BlackClock "0:00:40"]

1. e4 {[%clk 0:03:00]}  e5 {[%clk 0:03:00]} 2. Nf3 {[%clk 0:03:01]}  Nc6 {[%clk 0:03:00]} 3. Bc4 {[%clk 0:03:01]}  Nf6 {[%clk 0:03:00]} 4. d3 {[%clk 0:03:01]}  Be7 {[%clk 0:03:01]} 5. O-O {[%clk 0:03:01]}  O-O {[%clk 0:03:01]} 6. Re1 {[%clk 0:03:02]}  d6 {[%clk 0:03:01]} 7. c3 {[%clk 0:03:02]}  Na5 {[%clk 0:03:00]} 8. Bb5 {[%clk 0:03:02]}  a6 {[%clk 0:03:01]} 9. Ba4 {[%clk 0:03:02]}  c5 {[%clk 0:03:01]} 10. Nbd2 {[%clk 0:03:02]}  b5 {[%clk 0:03:02]} 11. Bc2 {[%clk 0:03:02]}  Bb7 {[%clk 0:03:01]} 12. Nf1 {[%clk 0:03:02]}  Re8 {[%clk 0:03:00]} 13. h3 {[%clk 0:03:00]}  h6 {[%clk 0:03:00]} 14. Ng3 {[%clk 0:02:53]}  Bf8 {[%clk 0:03:00]} 15. b4 {[%clk 0:02:26]}  cxb4 {[%clk 0:02:50]} 16. cxb4 {[%clk 0:02:26]}  Nc6 {[%clk 0:02:51]} 17. a3 {[%clk 0:02:23]}  d5 {[%clk 0:02:47]} 18. exd5 {[%clk 0:01:59]}  Nxd5 {[%clk 0:02:45]} 19. Bb2 {[%clk 0:01:59]}  Nf4 {[%clk 0:02:39]} 20. Rc1 {[%clk 0:01:27]}  Rc8 {[%clk 0:02:31]} 21. Bb1 {[%clk 0:01:25]}  Qd7 {[%clk 0:02:15]} 22. d4 {[%clk 0:00:53]}  Nxd4 {[%clk 0:02:12]} 23. Nxe5 {[%clk 0:00:36]}  Rxc1 {[%clk 0:01:09]} 24. Bxc1 {[%clk 0:00:36]}  Nde2+ {[%clk 0:00:51]} 25. Nxe2 {[%clk 0:00:06]}  Qxd1 {[%clk 0:00:50]} 26. Rxd1 {[%clk 0:00:03]}  Nxe2+ {[%clk 0:00:51]} 27. Kf1 {[%clk 0:00:03]}  Nc3 {[%clk 0:00:42]} 28. Re1 {[%clk 0:00:01]}  Nxb1 {[%clk 0:00:41]} 29. Bb2 {[%clk 0:00:01]}  Nd2+ {[%clk 0:00:41]} 30. Kg1 {[%clk 0:00:00]}  Nc4 {[%clk 0:00:40]} 0-1

[Event "January 9 Late 2024"]
[Site "https://www.chess.com"]
[Date "2024.01.09"]
[Round "9"]
[White "Pranav, V"]
[Black "Bluebaum, Matthias"]
[Result "1-0"]
[Board "6"]
[TimeControl "180+1"]
[WhiteFideId "25060783"]
[BlackFideId "24651516"]
[WhiteElo "3043"]
[BlackElo "3081"]
[WhiteTeam "IND"]
[BlackTeam "GER"]
[WhiteClock "0:00:29"]
[BlackClock "0:00:14"]

1. e4 {[%clk 0:03:00]}  e6 {[%clk 0:03:00]} 2. d3 {[%clk 0:03:00]}  d5 {[%clk 0:03:00]} 3. Nd2 {[%clk 0:03:01]}  Nf6 {[%clk 0:03:01]} 4. Ngf3 {[%clk 0:03:02]}  Be7 {[%clk 0:03:02]} 5. g3 {[%clk 0:02:59]}  a5 {[%clk 0:03:02]} 6. Bg2 {[%clk 0:02:59]}  a4 {[%clk 0:03:03]} 7. O-O {[%clk 0:02:59]}  c5 {[%clk 0:03:01]} 8. Re1 {[%clk 0:02:59]}  Nc6 {[%clk 0:03:01]} 9. a3 {[%clk 0:02:59]}  h6 {[%clk 0:03:02]} 10. e5 {[%clk 0:02:57]}  Nh7 {[%clk 0:03:01]} 11. Nf1 {[%clk 0:02:57]}  O-O {[%clk 0:03:01]} 12. h4 {[%clk 0:02:57]}  f5 {[%clk 0:03:01]} 13. c4 {[%clk 0:02:50]}  d4 {[%clk 0:02:56]} 14. N3h2 {[%clk 0:02:45]}  Qd7 {[%clk 0:02:49]} 15. Rb1 {[%clk 0:02:44]}  b6 {[%clk 0:02:49]} 16. b3 {[%clk 0:02:29]}  axb3 {[%clk 0:02:47]} 17. Rxb3 {[%clk 0:02:30]}  Bd8 {[%clk 0:02:42]} 18. f4 {[%clk 0:02:12]}  Bb7 {[%clk 0:02:41]} 19. Rb1 {[%clk 0:02:13]}  Na5 {[%clk 0:02:36]} 20. Bxb7 {[%clk 0:02:12]}  Qxb7 {[%clk 0:02:37]} 21. Nf3 {[%clk 0:02:10]}  Bc7 {[%clk 0:02:26]} 22. Kf2 {[%clk 0:02:04]}  Nc6 {[%clk 0:02:21]} 23. h5 {[%clk 0:02:01]}  Ra6 {[%clk 0:02:17]} 24. Nh4 {[%clk 0:02:00]}  Ne7 {[%clk 0:02:15]} 25. Nd2 {[%clk 0:01:58]}  Rfa8 {[%clk 0:02:06]} 26. Ndf3 {[%clk 0:01:58]}  Qc6 {[%clk 0:02:05]} 27. Nd2 {[%clk 0:01:52]}  Qe8 {[%clk 0:02:04]} 28. Rh1 {[%clk 0:01:51]}  Qf7 {[%clk 0:02:02]} 29. Qf3 {[%clk 0:01:47]}  R6a7 {[%clk 0:02:00]} 30. Ke2 {[%clk 0:01:43]}  Rf8 {[%clk 0:01:58]} 31. Bb2 {[%clk 0:01:42]}  Qe8 {[%clk 0:01:53]} 32. Rbg1 {[%clk 0:01:41]}  Qc6 {[%clk 0:01:52]} 33. Qxc6 {[%clk 0:01:32]}  Nxc6 {[%clk 0:01:53]} 34. g4 {[%clk 0:01:33]}  fxg4 {[%clk 0:01:50]} 35. Rxg4 {[%clk 0:01:34]}  Bd8 {[%clk 0:01:50]} 36. Ng6 {[%clk 0:01:31]}  Rf5 {[%clk 0:01:49]} 37. Ne4 {[%clk 0:01:30]}  Be7 {[%clk 0:01:38]} 38. Bc1 {[%clk 0:01:21]}  Rf7 {[%clk 0:01:25]} 39. Rf1 {[%clk 0:01:19]}  Nf8 {[%clk 0:01:21]} 40. Nxf8 {[%clk 0:01:07]}  Bxf8 {[%clk 0:01:18]} 41. Rg6 {[%clk 0:01:06]}  Nd8 {[%clk 0:01:07]} 42. Rfg1 {[%clk 0:01:00]}  Kh7 {[%clk 0:01:06]} 43. Kf3 {[%clk 0:00:55]}  Rf5 {[%clk 0:00:54]} 44. Ng3 {[%clk 0:00:49]}  Rff7 {[%clk 0:00:54]} 45. Ke4 {[%clk 0:00:49]}  Rab7 {[%clk 0:00:41]} 46. f5 {[%clk 0:00:48]}  exf5+ {[%clk 0:00:42]} 47. Nxf5 {[%clk 0:00:49]}  b5 {[%clk 0:00:43]} 48. cxb5 {[%clk 0:00:41]}  Rxb5 {[%clk 0:00:44]} 49. e6 {[%clk 0:00:38]}  Rxf5 {[%clk 0:00:34]} 50. Kxf5 {[%clk 0:00:28]}  c4+ {[%clk 0:00:34]} 51. Ke4 {[%clk 0:00:28]}  cxd3 {[%clk 0:00:34]} 52. e7 {[%clk 0:00:28]}  Bxe7 {[%clk 0:00:14]} 53. Rxg7+ {[%clk 0:00:28]}  Kh8 {[%clk 0:00:14]} 54. Rg8+ {[%clk 0:00:29]}  Kh7 {[%clk 0:00:14]} 55. R1g7# {[%clk 0:00:29]} 1-0

[Event "January 9 Late 2024"]
[Site "https://www.chess.com"]
[Date "2024.01.09"]
[Round "9"]
[White "Van Foreest, Jorden"]
[Black "Yoo, Christopher Woojin"]
[Result "1-0"]
[Board "9"]
[TimeControl "180+1"]
[WhiteFideId "1039784"]
[BlackFideId "30909694"]
[WhiteElo "3044"]
[BlackElo "2988"]
[WhiteTeam "NED"]
[BlackTeam "USA"]
[WhiteClock "0:00:24"]
[BlackClock "0:00:00"]

1. e4 {[%clk 0:03:00]}  c5 {[%clk 0:02:58]} 2. Nf3 {[%clk 0:03:00]}  d6 {[%clk 0:02:56]} 3. Nc3 {[%clk 0:03:00]}  Nf6 {[%clk 0:02:55]} 4. Be2 {[%clk 0:03:00]}  Nc6 {[%clk 0:02:51]} 5. d4 {[%clk 0:02:58]}  cxd4 {[%clk 0:02:51]} 6. Nxd4 {[%clk 0:02:59]}  e5 {[%clk 0:02:34]} 7. Nf3 {[%clk 0:02:59]}  Be7 {[%clk 0:02:33]} 8. O-O {[%clk 0:02:58]}  O-O {[%clk 0:02:34]} 9. Re1 {[%clk 0:02:58]}  Be6 {[%clk 0:02:18]} 10. Bg5 {[%clk 0:02:54]}  Rc8 {[%clk 0:02:13]} 11. Bxf6 {[%clk 0:02:53]}  Bxf6 {[%clk 0:02:13]} 12. a3 {[%clk 0:02:53]}  Ne7 {[%clk 0:01:50]} 13. Bf1 {[%clk 0:02:46]}  d5 {[%clk 0:01:36]} 14. exd5 {[%clk 0:02:44]}  Nxd5 {[%clk 0:01:36]} 15. Ne4 {[%clk 0:02:39]}  Nf4 {[%clk 0:01:30]} 16. g3 {[%clk 0:02:24]}  Nh3+ {[%clk 0:01:29]} 17. Bxh3 {[%clk 0:02:05]}  Bxh3 {[%clk 0:01:29]} 18. c3 {[%clk 0:01:54]}  Qxd1 {[%clk 0:00:50]} 19. Raxd1 {[%clk 0:01:52]}  Rfd8 {[%clk 0:00:51]} 20. Rd2 {[%clk 0:01:20]}  Rxd2 {[%clk 0:00:40]} 21. Nexd2 {[%clk 0:01:18]}  Rd8 {[%clk 0:00:30]} 22. Nc4 {[%clk 0:01:09]}  b5 {[%clk 0:00:17]} 23. Ncxe5 {[%clk 0:01:07]}  h5 {[%clk 0:00:05]} 24. Nd4 {[%clk 0:01:04]}  a5 {[%clk 0:00:05]} 25. f4 {[%clk 0:01:01]}  b4 {[%clk 0:00:04]} 26. Nec6 {[%clk 0:00:59]}  Rd6 {[%clk 0:00:02]} 27. Re8+ {[%clk 0:00:37]}  Kh7 {[%clk 0:00:03]} 28. Ne5 {[%clk 0:00:37]}  bxc3 {[%clk 0:00:03]} 29. bxc3 {[%clk 0:00:38]}  Bxe5 {[%clk 0:00:03]} 30. Rxe5 {[%clk 0:00:37]}  g6 {[%clk 0:00:03]} 31. Rxa5 {[%clk 0:00:37]}  Rb6 {[%clk 0:00:04]} 32. Rb5 {[%clk 0:00:33]}  Ra6 {[%clk 0:00:04]} 33. Rb3 {[%clk 0:00:33]}  Kg7 {[%clk 0:00:04]} 34. Kf2 {[%clk 0:00:33]}  Ra4 {[%clk 0:00:05]} 35. Ke3 {[%clk 0:00:34]}  Bc8 {[%clk 0:00:03]} 36. Nb5 {[%clk 0:00:30]}  Be6 {[%clk 0:00:02]} 37. Rb4 {[%clk 0:00:30]}  Ra5 {[%clk 0:00:03]} 38. a4 {[%clk 0:00:30]}  Bd7 {[%clk 0:00:02]} 39. c4 {[%clk 0:00:30]}  Kf6 {[%clk 0:00:03]} 40. Kd4 {[%clk 0:00:30]}  Ke7 {[%clk 0:00:02]} 41. Nc3 {[%clk 0:00:29]}  Ra7 {[%clk 0:00:01]} 42. Nd5+ {[%clk 0:00:29]}  Kf8 {[%clk 0:00:01]} 43. Nb6 {[%clk 0:00:27]}  Be8 {[%clk 0:00:02]} 44. c5 {[%clk 0:00:27]}  Bc6 {[%clk 0:00:01]} 45. Ke5 {[%clk 0:00:26]}  Re7+ {[%clk 0:00:02]} 46. Kd6 {[%clk 0:00:26]}  Bb7 {[%clk 0:00:02]} 47. Nd7+ {[%clk 0:00:25]}  Ke8 {[%clk 0:00:00]} 48. Rxb7 {[%clk 0:00:24]} 1-0

[Event "January 9 Late 2024"]
[Site "https://www.chess.com"]
[Date "2024.01.09"]
[Round "9"]
[White "Iturrizaga Bonelli, Eduardo"]
[Black "Beerdsen, Thomas"]
[Result "1-0"]
[Board "13"]
[TimeControl "180+1"]
[WhiteFideId "3901211"]
[BlackFideId "1030108"]
[WhiteElo "3038"]
[BlackElo "2859"]
[WhiteTeam "ESP"]
[BlackTeam "NED"]
[WhiteClock "0:00:17"]
[BlackClock "0:01:22"]

1. c4 {[%clk 0:03:00]}  e5 {[%clk 0:02:59]} 2. g3 {[%clk 0:03:01]}  h5 {[%clk 0:02:58]} 3. Nf3 {[%clk 0:03:00]}  e4 {[%clk 0:02:58]} 4. Nh4 {[%clk 0:03:00]}  c6 {[%clk 0:02:55]} 5. Nc3 {[%clk 0:03:00]}  d5 {[%clk 0:02:56]} 6. cxd5 {[%clk 0:02:59]}  g5 {[%clk 0:02:54]} 7. Ng2 {[%clk 0:02:56]}  cxd5 {[%clk 0:02:55]} 8. d3 {[%clk 0:02:56]}  exd3 {[%clk 0:02:51]} 9. Qxd3 {[%clk 0:02:56]}  Be6 {[%clk 0:02:49]} 10. h4 {[%clk 0:02:49]}  d4 {[%clk 0:02:45]} 11. Ne4 {[%clk 0:02:47]}  Bb4+ {[%clk 0:02:41]} 12. Bd2 {[%clk 0:02:44]}  Bxd2+ {[%clk 0:02:38]} 13. Qxd2 {[%clk 0:02:44]}  gxh4 {[%clk 0:02:38]} 14. Rxh4 {[%clk 0:02:40]}  Nc6 {[%clk 0:02:36]} 15. Nf4 {[%clk 0:02:37]}  Nf6 {[%clk 0:02:30]} 16. Nxe6 {[%clk 0:01:50]}  fxe6 {[%clk 0:02:30]} 17. Bh3 {[%clk 0:01:50]}  Qe7 {[%clk 0:02:16]} 18. Ng5 {[%clk 0:01:15]}  O-O-O {[%clk 0:01:58]} 19. Nxe6 {[%clk 0:01:11]}  Rd6 {[%clk 0:01:55]} 20. Nf8+ {[%clk 0:00:58]}  Kb8 {[%clk 0:01:54]} 21. Ng6 {[%clk 0:00:58]}  Qg7 {[%clk 0:01:53]} 22. Nxh8 {[%clk 0:00:53]}  Qxh8 {[%clk 0:01:54]} 23. Bg2 {[%clk 0:00:52]}  d3 {[%clk 0:01:48]} 24. Bxc6 {[%clk 0:00:45]}  Rxc6 {[%clk 0:01:45]} 25. Qxd3 {[%clk 0:00:44]}  a6 {[%clk 0:01:44]} 26. Rd1 {[%clk 0:00:40]}  Qg7 {[%clk 0:01:44]} 27. Rd4 {[%clk 0:00:35]}  Re6 {[%clk 0:01:37]} 28. Rd8+ {[%clk 0:00:33]}  Ka7 {[%clk 0:01:37]} 29. Rd6 {[%clk 0:00:33]}  Rxd6 {[%clk 0:01:33]} 30. Qxd6 {[%clk 0:00:32]}  Qf7 {[%clk 0:01:32]} 31. Qd4+ {[%clk 0:00:28]}  Ka8 {[%clk 0:01:32]} 32. Qe5 {[%clk 0:00:21]}  Qf8 {[%clk 0:01:28]} 33. Rd6 {[%clk 0:00:16]}  Ng4 {[%clk 0:01:22]} 34. Qd4 {[%clk 0:00:17]} 1-0

[Event "January 9 Late 2024"]
[Site "https://www.chess.com"]
[Date "2024.01.09"]
[Round "9"]
[White "Deac, Bogdan-Daniel"]
[Black "Velikanov, Alexander"]
[Result "1-0"]
[Board "17"]
[TimeControl "180+1"]
[WhiteFideId "1226380"]
[BlackFideId "2039290"]
[WhiteElo "3004"]
[BlackElo "2816"]
[WhiteTeam "ROU"]
[BlackTeam "USA"]
[WhiteClock "0:02:14"]
[BlackClock "0:01:55"]

1. b3 {[%clk 0:03:00]}  e5 {[%clk 0:02:58]} 2. Bb2 {[%clk 0:03:00]}  Nc6 {[%clk 0:02:58]} 3. Nf3 {[%clk 0:03:01]}  e4 {[%clk 0:02:56]} 4. Nd4 {[%clk 0:03:01]}  Nf6 {[%clk 0:02:50]} 5. e3 {[%clk 0:03:01]}  d5 {[%clk 0:02:47]} 6. Nxc6 {[%clk 0:02:59]}  bxc6 {[%clk 0:02:48]} 7. d3 {[%clk 0:02:59]}  Bf5 {[%clk 0:02:41]} 8. Nd2 {[%clk 0:02:58]}  Bb4 {[%clk 0:02:39]} 9. a3 {[%clk 0:02:57]}  Bxd2+ {[%clk 0:02:37]} 10. Qxd2 {[%clk 0:02:57]}  O-O {[%clk 0:02:37]} 11. Qc3 {[%clk 0:02:57]}  Qd6 {[%clk 0:02:34]} 12. Be2 {[%clk 0:02:49]}  Rfe8 {[%clk 0:02:29]} 13. g4 {[%clk 0:02:27]}  d4 {[%clk 0:02:22]} 14. Qxd4 {[%clk 0:02:23]}  Qxd4 {[%clk 0:02:22]} 15. Bxd4 {[%clk 0:02:24]}  Bxg4 {[%clk 0:02:16]} 16. Bxf6 {[%clk 0:02:17]}  Bxe2 {[%clk 0:02:15]} 17. Rg1 {[%clk 0:02:17]}  exd3 {[%clk 0:01:56]} 18. Rxg7+ {[%clk 0:02:14]}  Kf8 {[%clk 0:01:55]} 19. Rxh7 {[%clk 0:02:14]} 1-0

[Event "January 9 Late 2024"]
[Site "https://www.chess.com"]
[Date "2024.01.09"]
[Round "9"]
[White "Badmatsyrenov, Oleg"]
[Black "Dominguez Perez, Leinier"]
[Result "0-1"]
[Board "18"]
[TimeControl "180+1"]
[WhiteFideId "24115762"]
[BlackFideId "3503240"]
[WhiteElo "2810"]
[BlackElo "3002"]
[WhiteTeam "FID"]
[BlackTeam "USA"]
[WhiteClock "0:00:04"]
[BlackClock "0:00:30"]

1. e4 {[%clk 0:03:00]}  c5 {[%clk 0:02:59]} 2. Nf3 {[%clk 0:03:00]}  d6 {[%clk 0:03:00]} 3. d4 {[%clk 0:03:01]}  cxd4 {[%clk 0:03:00]} 4. Nxd4 {[%clk 0:03:02]}  Nf6 {[%clk 0:03:01]} 5. Nc3 {[%clk 0:03:02]}  a6 {[%clk 0:03:01]} 6. f4 {[%clk 0:03:03]}  e5 {[%clk 0:02:59]} 7. Nf3 {[%clk 0:03:03]}  Nbd7 {[%clk 0:02:59]} 8. g4 {[%clk 0:03:03]}  Nxg4 {[%clk 0:02:49]} 9. Bc4 {[%clk 0:03:04]}  exf4 {[%clk 0:02:23]} 10. Bxf4 {[%clk 0:03:03]}  Be7 {[%clk 0:01:53]} 11. Qd2 {[%clk 0:02:23]}  Nde5 {[%clk 0:01:52]} 12. Be2 {[%clk 0:02:10]}  Nxf3+ {[%clk 0:01:47]} 13. Bxf3 {[%clk 0:02:10]}  Bh4+ {[%clk 0:01:47]} 14. Ke2 {[%clk 0:02:04]}  Ne5 {[%clk 0:01:44]} 15. Rhg1 {[%clk 0:01:53]}  Be6 {[%clk 0:01:28]} 16. Nd5 {[%clk 0:01:45]}  Bf6 {[%clk 0:01:14]} 17. Rad1 {[%clk 0:01:14]}  Rc8 {[%clk 0:01:06]} 18. b3 {[%clk 0:00:48]}  Bxd5 {[%clk 0:01:01]} 19. Qxd5 {[%clk 0:00:27]}  Rxc2+ {[%clk 0:01:01]} 20. Rd2 {[%clk 0:00:27]}  Rxd2+ {[%clk 0:00:58]} 21. Bxd2 {[%clk 0:00:27]}  Qd7 {[%clk 0:00:44]} 22. Rg3 {[%clk 0:00:19]}  O-O {[%clk 0:00:41]} 23. Bg2 {[%clk 0:00:10]}  Qe7 {[%clk 0:00:37]} 24. Bb4 {[%clk 0:00:09]}  Rd8 {[%clk 0:00:37]} 25. Bh3 {[%clk 0:00:08]}  Ng6 {[%clk 0:00:30]} 26. Bf5 {[%clk 0:00:04]}  Nf4+ {[%clk 0:00:30]} 0-1